{"text_format":"1","workbook":"xlsx","n_sheets":2,"sheets":["Data","Форма ввода"],"not_rendered":{"charts":0,"images":0,"macros":1,"external_links":0,"defined_names":0,"comments":0,"pivot_tables":0},"unopened":[],"bounds":{"document_bytes":16777216,"sheet_cells":100000,"rows_first":2000,"rows_last":500,"rows_between":2000,"halvings":0,"cell_chars":16384,"cell_head_chars":4096},"cells_cut":0,"cells_raw":0,"read":"whole","date_system":"1900"}

{"sheet":"Data","index":0,"n_rows":10,"n_cols":7,"rows_kept":10,"cut":false,"hidden":false,"merged":[]}
["Показатель","Дата","Смена 1","Смена 2",null,null,"Пароль защиты листа - 1231"]
["Сортировка круглого леса, м³ (Общая)","2024-07-01",810.86900000000003,518.77800000000002]
["Пересортировка круглого леса, м³ (L-4)","2024-07-01",null,190.38800000000001]
["Распил, м³","2024-07-01",1258.585,1857.68]
["Сортировка сырых ПМ, м³","2024-07-01",655.73900000000003,964.66300000000001]
["В т.ч. Пакеты, м³ (сырые)","2024-07-01",654.00599999999997,948.59699999999998]
["Сортировка сухих ПМ, м³","2024-07-01",406.488]
["В т.ч. Пакеты, м³ (сухие)","2024-07-01",370.61599999999999]
["Количество машин (лом)","2024-07-01"]
["Отгружено СГП, м³","2024-07-01",1121.684]

{"sheet":"Форма ввода","index":1,"n_rows":35,"n_cols":7,"rows_kept":35,"cut":false,"hidden":false,"merged":[]}
["Введите дату →","2024-08-15",null,"1 столбец","2 столбец"]
[null,"Сортировка круглого леса, м³ (Общая)",{"$f":"IF(AND(D2=\"\",E2=\"\"),\"\",$B$1)","v":""},null,null,null,"Пароль защиты листа - 1231"]
[null,"Пересортировка круглого леса, м³ (L-4)",{"$f":"IF(AND(D3=\"\",E3=\"\"),\"\",$B$1)","v":"2024-08-15"},10]
[null,"Распил, м³","",null,null,null,"Пароль макроса - 1231"]
[null,"Сортировка сырых ПМ, м³","2024-08-15",20]
[null,"В т.ч. Пакеты, м³ (сырые)",""]
[null,"Сортировка сухих ПМ, м³","2024-08-15",null,30]
[null,"В т.ч. Пакеты, м³ (сухие)",""]
["Образовано лома","Количество машин (лом)",""]
["Отгрузка с СГП П/М","Отгружено СГП, м³",""]
[null,"Отгружено с завода на АБК  м³",""]
[null,"Отгружено с завода на Аркаим, м³",""]
[null,"Отгружено с завода на Мекран, м³",""]
[null,"Контейнеры",""]
[null,"Отгрузка коры, м³",""]
[null,"Отгрузка щепы, м³",""]
["Производство топливных гранул","Произведено",""]
[null,"Упаковано",""]
[null,"Переданно на СГП",""]
[null,"Отгруженно с СГП",""]
["Вывозка сортимента из леса","Объем, м3",""]
[null,"Количество машин ",""]
[]
[]
[]
[]
[]
[]
[]
[]
["Задача"]
["Из диапазона B2:E22 копировать только строки с данными и вставить на лист Data в конец таблицы - уловие: наличие данных в D ИЛИ в E"]
["Пересортировка круглого леса, м³ (L-4)",45519,10]
["Сортировка сырых ПМ, м³",45519,20]
["Сортировка сухих ПМ, м³",45519,null,30]